fUST/lending_fUST_20240301
["ID","MTS","AMOUNT","RATE_DAILY","PERIOD"]
[315861371,1709226648612,-350.23363951,0.0002027,2]
[315861372,1709226648621,-929.31527415,0.00020299,2]
[315861373,1709226648630,-1066.50137448,0.00020299,2]
[315861374,1709226648642,-435.56602072,0.00020299,2]
[315861375,1709226648654,-1177.39804555,0.00020299,2]
[315867266,1709227346440,462.791871,0.00016971,2]
[315867323,1709227358881,2323.7301237,0.0001697,2]
[315867438,1709227383975,1260.3186205,0.00017046,2]
[315867541,1709227414958,685.76429522,0.00016971,2]
[315867602,1709227428985,685.76429522,0.00017046,2]
[315867681,1709227445044,294.81801363,0.00017046,2]
[315867707,1709227452256,321.40419734,0.00017045,2]
[315867778,1709227468639,24900.0,0.00017604,2]
[315868269,1709227833883,-321.40419734,0.00017653,2]
[315868270,1709227833893,-1592.05606337,0.00017654,2]
[315868271,1709227833902,-1863.33093334,0.00017655,2]
[315868272,1709227833911,-1079.67786944,0.00017655,2]
[315868273,1709227833921,-6912.93495998,0.00017655,2]
[315868274,1709227833932,-1338.09926385,0.00017656,2]
[315868275,1709227833941,-231.395935,0.00017657,2]
[315868276,1709227833951,-883.48769579,0.00017696,2]
[315868277,1709227833960,-214.46734632,0.00017697,2]
[315868278,1709227833969,-274.00317953,0.00017697,2]
[315868279,1709227833978,-155.09926353,0.00017702,2]
[315868280,1709227833988,-162.15450539,0.00017737,2]
[315868281,1709227833997,-851.6367837,0.00017868,2]
[315868282,1709227834007,-989.95823837,0.00018898,2]
[315868283,1709227834016,-793.3173113,0.000189,2]
[315868284,1709227834025,-186.288497,0.00019178,2]
[315868285,1709227834034,-199.8022309,0.000197,2]
[315868286,1709227834044,-200.6643816,0.000197,2]
[315868287,1709227834053,-3273.56,0.0001999,3]
[315868288,1709227834063,-200.6643816,0.0002,2]
[315868289,1709227834073,-200.6643816,0.0002,2]
[315868290,1709227834082,-200.6643816,0.0002,2]
[315868291,1709227834091,-200.6643816,0.0002,2]
[315868292,1709227834100,-200.6643816,0.0002,2]
[315868293,1709227834110,-45009.0,0.0002,2]
[315868294,1709227834120,-153.0,0.0002,2]
[315868295,1709227834129,-200.6643816,0.0002,2]
[315868296,1709227834139,-306.0,0.0002,2]
[315868297,1709227834149,-200.6643816,0.0002,2]
[315868298,1709227834157,-200.6643816,0.0002,2]
[315868299,1709227834167,-329.37246639,0.00020093,2]
[315868300,1709227834178,-329.37246637,0.00020182,2]
[315868301,1709227834187,-5628.42,0.00020182,3]
[315868302,1709227834196,-153.0,0.00020192,2]
[315868303,1709227834205,-61.99586989,0.00020192,2]
[315868309,1709227838483,-1084.5561706,0.00020172,3]
[315868310,1709227838495,-3605.7938294,0.00020172,3]
[315868311,1709227838504,-91.00413011,0.00020192,2]
[315868312,1709227838512,-153.0,0.00020192,2]
[315868313,1709227838521,-153.0,0.00020192,2]
[315868314,1709227838530,-153.0,0.00020192,2]
[315868315,1709227838539,-153.0,0.00020192,2]
[315868316,1709227838548,-153.0,0.00020192,2]
[315868317,1709227838558,-153.0,0.00020192,2]
[315868318,1709227838568,-2218.38749423,0.00020192,2]
[315868319,1709227838579,-6485.80151009,0.00020192,2]
[315868320,1709227838591,-333.39885081,0.00020192,2]
[315868352,1709227843563,-353.0600004,0.00020192,2]
[315868353,1709227843575,-11449.35214447,0.00020192,2]
[315868354,1709227843584,-1721.59173061,0.00020193,2]
[315868355,1709227843594,-5196.90199597,0.00020193,3]
[315868356,1709227843760,-2625.46530405,0.00020193,3]
[315868357,1709227843770,-3081.42805977,0.00020193,5]
[315868358,1709227843781,-201.22900838,0.00020265,4]
[315868359,1709227843791,-329.37246637,0.0002027,2]
[315868360,1709227843801,-1441.82589248,0.00020299,2]
[315868361,1709227843810,-927.29054998,0.00020299,2]
[315868362,1709227843819,-316.07662917,0.00020299,2]
[315868363,1709227843830,-155.08995217,0.00020299,2]
[315868364,1709227843839,-1234.05386931,0.00020299,2]
[315868366,1709227843849,-236.70269346,0.00020299,2]
[315868368,1709227843974,-200.6643816,0.000203,2]
[315868369,1709227844004,-2762.0211439,0.00020347,2]
[315868370,1709227844016,-1999.44218435,0.00020347,2]
[315868371,1709227844027,-509.79480362,0.00020347,2]
[315868381,1709227848855,-584.92617288,0.00020347,2]
[315868382,1709227848924,-14980.54619119,0.00020347,2]
[315868383,1709227848933,-329.37246637,0.00020359,2]
[315868384,1709227848945,-329.37246637,0.00020447,2]
[315868385,1709227848954,-1080.46190468,0.00020447,2]
[315868386,1709227848963,-153.0,0.00020466,2]
[315868387,1709227848972,-153.0,0.00020466,2]
[315868388,1709227848981,-153.0,0.00020466,2]
[315868389,1709227848990,-153.0,0.00020466,2]
[315868390,1709227848999,-316.9644768,0.00020497,2]
[315868391,1709227849011,-763.49742781,0.00020497,2]
[315868392,1709227849020,-1753.86042696,0.000205,2]
[315868393,1709227849030,-3908.62,0.00020537,3]
[315868394,1709227849039,-1079.67786944,0.00020545,2]
[315868395,1709227849048,-1764.58174522,0.00020545,2]
[315868396,1709227849056,-313.03166666,0.00020545,2]
[315868397,1709227849066,-274.66330851,0.00020545,2]
[315868398,1709227849075,-500.0,0.00020546,2]
[315868399,1709227849084,-250.0,0.00020546,2]
[315868400,1709227849093,-500.0,0.00020546,2]
[315868401,1709227849102,-474.86878388,0.00020546,2]
[315868402,1709227849111,-500.0,0.00020546,2]
[315868403,1709227849120,-368.52660278,0.00020546,2]
[315868404,1709227849129,-500.0,0.00020546,2]
[315868405,1709227849138,-500.0,0.00020546,2]
[315868406,1709227849147,-204.03269464,0.00020546,2]
[315868407,1709227849156,-500.0,0.00020546,2]
[315868408,1709227849165,-500.0,0.00020546,2]
[315868409,1709227849174,-500.0,0.00020546,2]
[315868410,1709227849184,-500.0,0.00020546,2]
[315868411,1709227849197,-500.0,0.00020546,2]
[315868412,1709227849206,-500.0,0.00020546,2]
[315868413,1709227849215,-500.0,0.00020546,2]
[315868414,1709227849224,-500.4167856,0.00020546,2]
[315868415,1709227849233,-500.0,0.00020546,2]
[315868416,1709227849242,-500.0,0.00020546,2]
[315868417,1709227849251,-500.0,0.00020546,2]
[315868418,1709227849260,-523.58989567,0.00020546,2]
[315868419,1709227849269,-500.0,0.00020546,2]
[315868420,1709227849278,-500.0,0.00020546,2]
[315868421,1709227849287,-525.0,0.00020546,2]
[315868422,1709227849296,-500.0,0.00020546,2]
[315868423,1709227849306,-500.0,0.00020546,2]
[315868424,1709227849315,-500.0,0.00020546,2]
[315868425,1709227849323,-500.0,0.00020546,2]
[315868426,1709227849332,-500.0,0.00020546,2]
[315868427,1709227849341,-500.0,0.00020546,2]
[315868428,1709227849349,-500.0,0.00020546,2]
[315868429,1709227849358,-485.06548248,0.00020546,2]
[315868430,1709227849367,-346.43714946,0.00020546,2]
[315868431,1709227849376,-500.0,0.00020546,2]
[315868432,1709227849385,-500.0,0.00020546,2]
[315868433,1709227849393,-500.0,0.00020546,2]
[315868434,1709227849402,-500.0,0.00020546,2]
[315868435,1709227849411,-192.29631316,0.00020546,2]
[315868436,1709227849420,-500.0,0.00020546,2]
[315868437,1709227849429,-500.0,0.00020546,2]
[315868438,1709227849441,-500.0,0.00020546,2]
[315868439,1709227849450,-500.0,0.00020546,2]
[315868440,1709227849459,-500.0,0.00020546,2]
[315868441,1709227849468,-500.0,0.00020546,2]
[315868442,1709227849478,-500.0,0.00020546,2]
[315868443,1709227849487,-500.0,0.00020546,2]
[315868444,1709227849496,-300.0,0.00020546,2]
[315868445,1709227849505,-300.0,0.00020546,2]
[315868446,1709227849514,-500.0,0.00020546,2]
[315868447,1709227849523,-301.40859061,0.00020546,2]
[315868448,1709227849532,-500.0,0.00020546,2]
[315868449,1709227849541,-500.0,0.00020546,2]
[315868450,1709227849550,-500.0,0.00020546,2]
[315868451,1709227849559,-500.0,0.00020546,2]
[315868453,1709227849569,-500.0,0.00020546,2]
[315868454,1709227849579,-500.0,0.00020546,2]
[315868455,1709227849588,-500.0,0.00020546,2]
[315868456,1709227849598,-500.0,0.00020546,2]
[315868457,1709227849607,-500.0,0.00020546,2]
[315868458,1709227849618,-500.0,0.00020546,2]
[315868459,1709227849627,-500.0,0.00020546,2]
[315868460,1709227849635,-500.0,0.00020546,2]
[315868461,1709227849644,-500.0,0.00020546,2]
[315868462,1709227849653,-250.0,0.00020546,2]
[315868463,1709227849662,-480.27427171,0.00020546,2]
[315868466,1709228719322,3899.719641,0.000175,4]
[315868468,1709229031444,151.73,0.0003,120]
[315868542,1709229032838,-610.5,0.00017976,2]
[315868543,1709229032853,-727.59926385,0.00017976,2]
[315868544,1709229032862,-261.18703337,0.00017977,2]
[315868545,1709229032872,-321.40419734,0.00017977,2]
[315868546,1709229032882,-214.46734632,0.00017977,2]
[315868547,1709229032891,-1079.67786944,0.00017978,2]
[315868548,1709229032901,-883.48769579,0.00017979,2]
[315868549,1709229032910,-2138.90461811,0.0001799,2]
[315868550,1709229032920,-856.03601886,0.00018,2]
[315868551,1709229032929,-8752.48595692,0.00018681,2]
[315868633,1709229039716,-16147.51404308,0.00018681,2]
[315868635,1709229039725,-231.395935,0.00018681,2]
[315868637,1709229039735,-528.87820753,0.000189,2]
[315868638,1709229039744,-155.12099438,0.00019,2]
[315868640,1709229039754,-155.0,0.0002,2]
[315868642,1709229039763,-14114.92856297,0.0002,2]
[315868644,1709229039772,-20840.0,0.0002019,2]
[315868645,1709229039781,-5000.0,0.00020191,5]
[315868647,1709229039790,-1837.65343091,0.00020193,3]
[315868648,1709229039798,-829.70769895,0.00020193,2]
[315868650,1709229039807,-448.73270766,0.00020299,2]
[315868651,1709229039820,-242.16407405,0.00020299,2]
[315868653,1709229039829,-314.78794339,0.00020299,2]
[315868655,1709229039839,-1796.59032914,0.00020323,2]
[315868656,1709229039848,-3257.18,0.00020437,3]
[315868657,1709229039858,-2714.32,0.00020437,3]
[315868659,1709229039867,-1103.80811997,0.00020445,2]
[315868661,1709229039877,-864.36952376,0.00020447,2]
[315868662,1709229039886,-62902.83743,0.00020447,2]
[315868664,1709229039896,-864.36952368,0.00020497,2]
[315868665,1709229039906,-1090.02004339,0.00020545,2]
[315868666,1709229039920,-251.47083884,0.00020545,2]
[315868667,1709229039929,-19.72572829,0.00020546,2]
[315868668,1709229039938,-229.06957482,0.00020546,2]
[315868669,1709229039957,-500.0,0.00020546,2]
[315868670,1709229039969,-500.0,0.00020546,2]
[315868671,1709229039979,-300.0,0.00020546,2]
[315868672,1709229039990,-500.0,0.00020546,2]
[315868673,1709229040001,-500.0,0.00020546,2]
[315868674,1709229040014,-650.0,0.00020546,2]
[315868675,1709229040023,-155.10702385,0.00020546,2]
[315868676,1709229040033,-316.07662917,0.00020546,2]
[315868677,1709229040042,-500.0,0.00020546,2]
[315868678,1709229040054,-553.57895061,0.00020546,2]
[315868679,1709229040064,-500.0,0.00020546,2]
[315868680,1709229040219,-500.0,0.00020546,2]
[315868681,1709229040239,-500.0,0.00020546,2]
[315868682,1709229040248,-500.0,0.00020546,2]
[315868683,1709229040258,-385.28546728,0.00020546,2]
[315868684,1709229040268,-237.82520694,0.00020546,2]
[315868685,1709229040278,-500.0,0.00020546,2]
[315868686,1709229040287,-485.68779073,0.00020546,2]
[315868687,1709229040297,-500.0,0.00020546,2]
[315868688,1709229040307,-500.0,0.00020546,2]
[315868689,1709229040318,-500.0,0.00020546,2]
[315868690,1709229040330,-500.0,0.00020546,2]
[315868691,1709229040341,-500.0,0.00020546,2]
[315868692,1709229040352,-500.0,0.00020546,2]
[315868693,1709229040362,-500.0,0.00020546,2]
[315868694,1709229040371,-500.0,0.00020546,2]
[315868695,1709229040381,-500.0,0.00020546,2]
[315868697,1709229040390,-500.0,0.00020546,2]
[315868698,1709229040400,-586.36317416,0.00020546,2]
[315868699,1709229040409,-500.0,0.00020546,2]
[315868700,1709229040422,-500.0,0.00020546,2]
[315868701,1709229040431,-500.0,0.00020546,2]
[315868702,1709229040441,-500.0,0.00020546,2]
[315868703,1709229040450,-500.0,0.00020546,2]
[315868704,1709229040459,-500.0,0.00020546,2]
[315868705,1709229040469,-500.0,0.00020546,2]
[315868706,1709229040478,-500.0,0.00020546,2]
[315868707,1709229040487,-500.0,0.00020546,2]
[315868708,1709229040496,-500.0,0.00020546,2]
[315868709,1709229040506,-500.0,0.00020546,2]
[315868710,1709229040514,-610.45422191,0.00020546,2]
[315868711,1709229040523,-300.0,0.00020546,2]
[315868712,1709229040533,-155.20176229,0.00020547,2]
[315868713,1709229040542,-364.42132833,0.00020547,2]
[315868714,1709229040551,-500.0,0.00020547,2]
[315868715,1709229040561,-500.0,0.00020547,2]
[315868716,1709229040574,-500.0,0.00020547,2]
[315868717,1709229040583,-396.77837823,0.00020547,2]
[315868718,1709229040593,-500.0,0.00020547,2]
[315868719,1709229040602,-500.0,0.00020547,2]
[315868720,1709229040611,-500.0,0.00020547,2]
[315868721,1709229040620,-500.0,0.00020547,2]
[315868722,1709229040629,-170.81,0.00020547,2]
[315868723,1709229040639,-500.0,0.00020547,2]
[315868724,1709229040647,-500.0,0.00020547,2]
[315868725,1709229040657,-500.0,0.00020547,2]
[315868726,1709229040666,-601.31095344,0.00020547,2]
[315868727,1709229040675,-500.0,0.00020547,2]
[315868728,1709229040684,-500.0,0.00020547,2]
[315868729,1709229040693,-500.0,0.00020547,2]
[315868730,1709229040702,-500.0,0.00020547,2]
[315868731,1709229040712,-500.0,0.00020547,2]
[315868732,1709229040720,-500.0,0.00020547,2]
[315868733,1709229040729,-500.0,0.00020547,2]
[315868734,1709229040739,-500.0,0.00020547,2]
[315868735,1709229040748,-378.09595608,0.00020547,2]
[315868736,1709229040756,-636.90447411,0.00020547,2]
[315868737,1709229040765,-500.0,0.00020547,2]
[315868738,1709229040774,-501.70061197,0.00020547,2]
[315868739,1709229040784,-500.0,0.00020547,2]
[315868740,1709229040793,-500.0,0.00020547,2]
[315868741,1709229040802,-500.0,0.00020547,2]
[315868742,1709229040811,-500.0,0.00020547,2]
[315868743,1709229040825,-500.0,0.00020547,2]
[315868744,1709229040834,-203.01,0.00020547,2]
[315868745,1709229040844,-331.68153618,0.00020547,2]
[315868746,1709229040853,-193.26256233,0.00020547,2]
[315868747,1709229040861,-500.0,0.00020547,2]
[315868748,1709229040871,-225.83201893,0.00020547,2]
[315868749,1709229040881,-500.0,0.00020547,2]
[315868750,1709229040890,-257.10092502,0.00020547,2]
[315868751,1709229040899,-279.30791777,0.00020547,2]
[315868752,1709229040909,-501.13519098,0.00020547,2]
[315868753,1709229040919,-400.32969916,0.00020547,2]
[315868754,1709229040928,-500.0,0.00020547,2]
[315868755,1709229040937,-500.0,0.00020547,2]
[315868756,1709229040947,-500.0,0.00020547,2]
[315868757,1709229040956,-500.0,0.00020547,2]
[315868758,1709229040965,-500.0,0.00020547,2]
[315868759,1709229040974,-637.31542059,0.00020547,2]
[315868760,1709229040982,-500.0,0.00020547,2]
[315868761,1709229040991,-500.0,0.00020547,2]
[315868762,1709229041002,-428.04,0.00020547,2]
[315868763,1709229041012,-500.0,0.00020547,2]
[315868764,1709229041021,-500.0,0.00020547,2]
[315868765,1709229041030,-305.93294582,0.00020547,2]
[315868766,1709229041039,-500.0,0.00020547,2]
[315868767,1709229041052,-500.0,0.00020547,2]
[315868768,1709229041062,-500.0,0.00020547,2]
[315868769,1709229041075,-500.0,0.00020547,2]
[315868770,1709229041086,-213.67,0.00020547,2]
[315868771,1709229041095,-234.76750263,0.00020547,2]
[315868772,1709229041104,-1000.0,0.00020547,2]
[315868773,1709229041113,-501.12304103,0.00020547,2]
[315868774,1709229041124,-522.5209825,0.00020547,2]
[315868775,1709229041133,-500.0,0.00020547,2]
[315868776,1709229041143,-500.0,0.00020547,2]
[315868777,1709229041151,-500.0,0.00020547,2]
[315868778,1709229041160,-500.0,0.00020547,2]
[315868779,1709229041170,-500.0,0.00020547,2]
[315868780,1709229041179,-500.0,0.00020547,2]
[315868781,1709229041188,-500.0,0.00020547,2]
[315868782,1709229041197,-500.0,0.00020547,2]
[315868783,1709229041206,-500.0,0.00020547,2]
[315868784,1709229041217,-500.0,0.00020547,2]
[315868785,1709229041226,-1104.4,0.00020547,2]
[315868786,1709229041236,-1104.4,0.00020547,2]
[315868787,1709229041245,-1104.4,0.00020547,2]
[315868788,1709229041255,-1104.4,0.00020547,2]
[315868789,1709229041264,-1104.4,0.00020547,2]
[315868790,1709229041274,-1104.4,0.00020547,2]
[315868791,1709229041284,-1104.4,0.00020547,2]
[315868792,1709229041293,-1104.4,0.00020547,2]
[315868793,1709229041302,-1104.4,0.00020547,2]
[315868794,1709229041311,-1104.4,0.00020547,2]
[315868795,1709229041326,-500.0,0.00020547,2]
[315868796,1709229041336,-1104.4,0.00020547,2]
[315868797,1709229041347,-500.0,0.00020547,2]
[315868798,1709229041356,-1104.4,0.00020547,2]
[315868799,1709229041365,-500.0,0.00020547,2]
[315868800,1709229041375,-1104.4,0.00020547,2]
[315868801,1709229041385,-287.87629866,0.00020547,2]
[315868802,1709229041395,-1104.4,0.00020547,2]
[315868803,1709229041406,-500.0,0.00020547,2]
[315868804,1709229041415,-500.0,0.00020547,2]
[315868805,1709229041425,-500.0,0.00020547,2]
[315868806,1709229041434,-500.0,0.00020547,2]
[315868807,1709229041444,-500.0,0.00020547,2]
[315868808,1709229041453,-500.0,0.00020547,2]
[315868809,1709229041462,-500.0,0.00020547,2]
[315868810,1709229041474,-500.0,0.00020547,2]
[315868811,1709229041484,-500.0,0.00020547,2]
[315868812,1709229041494,-500.0,0.00020547,2]
[315868813,1709229041504,-500.0,0.00020547,2]
[315868814,1709229041514,-500.0,0.00020547,2]
[315868815,1709229041523,-500.0,0.00020547,2]
[315868816,1709229041533,-500.0,0.00020547,2]
[315868817,1709229041542,-500.0,0.00020547,2]
[315868818,1709229041552,-500.0,0.00020547,2]
[315868819,1709229041561,-500.0,0.00020547,2]
[315868820,1709229041575,-500.0,0.00020547,2]
[315868821,1709229041585,-500.0,0.00020547,2]
[315868822,1709229041594,-500.0,0.00020547,2]
[315868823,1709229041605,-500.0,0.00020547,2]
[315868824,1709229041614,-500.0,0.00020547,2]
[315868825,1709229041624,-500.0,0.00020547,2]
[315868826,1709229041633,-500.0,0.00020547,2]
[315868827,1709229041643,-500.0,0.00020547,2]
[315868828,1709229041652,-500.0,0.00020547,2]
[315868829,1709229041661,-500.0,0.00020547,2]
[315868830,1709229041670,-542.21389306,0.00020547,2]
[315868831,1709229041679,-500.45340877,0.00020547,2]
[315868832,1709229041688,-515.60646246,0.00020547,2]
[315868833,1709229041697,-500.0,0.00020547,2]
[315868834,1709229041706,-618.37454632,0.00020547,2]
[315868835,1709229041715,-500.0,0.00020547,2]
[315868836,1709229041724,-612.90799831,0.00020547,2]
[315868837,1709229041733,-500.0,0.00020547,2]
[315868838,1709229041742,-500.0,0.00020547,2]
[315868839,1709229041752,-500.0,0.00020547,2]
[315868840,1709229041762,-500.0,0.00020547,2]
[315868841,1709229041772,-500.0,0.00020547,2]
[315868842,1709229041781,-500.0,0.00020547,2]
[315868843,1709229041791,-500.0,0.00020547,2]
[315868844,1709229041800,-500.0,0.00020547,2]
[315868845,1709229041810,-172.5967537,0.00020547,2]
[315868846,1709229041822,-501.06552157,0.00020547,2]
[315868847,1709229041831,-500.0,0.00020547,2]
[315868848,1709229041841,-500.0,0.00020547,2]
[315868849,1709229041851,-500.0,0.00020547,2]
[315868850,1709229041861,-500.0,0.00020547,2]
[315868851,1709229041870,-500.0,0.00020547,2]
[315868852,1709229041880,-500.0,0.00020547,2]
[315868853,1709229041889,-500.0,0.00020547,2]
[315868854,1709229041899,-241.11026349,0.00020547,2]
[315868855,1709229041909,-500.0,0.00020547,2]
[315868856,1709229041917,-500.0,0.00020547,2]
[315868857,1709229041925,-500.0,0.00020547,2]
[315868858,1709229041934,-501.16857812,0.00020547,2]
[315868859,1709229041942,-500.0,0.00020547,2]
[315868860,1709229041952,-500.0,0.00020547,2]
[315868861,1709229041961,-500.0,0.00020547,2]
[315868862,1709229041971,-500.0,0.00020547,2]
[315868863,1709229041980,-500.0,0.00020547,2]
[315868864,1709229041990,-500.0,0.00020547,2]
[315868865,1709229041999,-500.0,0.00020547,2]
[315868866,1709229042011,-500.0,0.00020547,2]
[315868867,1709229042020,-500.01,0.00020547,2]
[315868868,1709229042029,-500.0,0.00020547,2]
[315868869,1709229042038,-500.0,0.00020547,2]
[315868870,1709229042052,-500.0,0.00020547,2]
[315868871,1709229042062,-500.0,0.00020547,2]
[315868872,1709229042075,-500.0,0.00020547,2]
[315868873,1709229042085,-500.0,0.00020547,2]
[315868874,1709229042094,-500.0,0.00020547,2]
[315868875,1709229042103,-500.0,0.00020547,2]
[315868876,1709229042113,-500.0,0.00020547,2]
[315868877,1709229042122,-500.0,0.00020547,2]
[315868878,1709229042131,-500.0,0.00020547,2]
[315868879,1709229042141,-500.0,0.00020547,2]
[315868880,1709229042150,-500.0,0.00020547,2]
[315868881,1709229042160,-150.37,0.00020547,2]
[315868882,1709229042169,-628.54884446,0.00020547,2]
[315868883,1709229042178,-500.0,0.00020547,2]
[315868884,1709229042187,-500.0,0.00020547,2]
[315868885,1709229042197,-246.96258692,0.00020547,2]
[315868886,1709229042206,-500.85912702,0.00020547,2]
[315868887,1709229042216,-500.26241958,0.00020547,2]
[315868888,1709229042225,-500.0,0.00020547,2]
[315868889,1709229042235,-500.0,0.00020547,2]
[315868890,1709229042244,-500.52309887,0.00020547,2]
[315868891,1709229042254,-500.0,0.00020547,2]
[315868892,1709229042263,-351.40657678,0.00020547,2]
[315868893,1709229042273,-500.0,0.00020547,2]
[315868894,1709229042282,-500.0,0.00020547,2]
[315868895,1709229042292,-500.0,0.00020547,2]
[315868896,1709229042301,-500.0,0.00020547,2]
[315868897,1709229042310,-500.0,0.00020547,2]
[315868898,1709229042323,-365.63,0.00020547,2]
[315868899,1709229042332,-501.22178081,0.00020547,2]
[315868900,1709229042341,-500.0,0.00020547,2]
[315868901,1709229042350,-500.0,0.00020547,2]
[315868902,1709229042360,-500.0,0.00020547,2]
[315868903,1709229042369,-501.12706915,0.00020547,2]
[315868904,1709229042379,-245.765623,0.00020547,2]
[315868905,1709229042388,-245.765623,0.00020547,2]
[315868906,1709229042398,-245.765623,0.00020547,2]
[315868907,1709229042407,-245.765623,0.00020547,2]
[315868908,1709229042417,-245.765623,0.00020547,2]
[315868909,1709229042427,-245.765623,0.00020547,2]
[315868910,1709229042436,-500.0,0.00020547,2]
[315868911,1709229042445,-245.765623,0.00020547,2]
[315868912,1709229042455,-500.0,0.00020547,2]
[315868913,1709229042465,-245.765623,0.00020547,2]
[315868914,1709229042474,-245.765623,0.00020547,2]
[315868915,1709229042483,-500.0,0.00020547,2]
[315868916,1709229042492,-245.765623,0.00020547,2]
[315868917,1709229042501,-500.0,0.00020547,2]
[315868918,1709229042511,-245.765623,0.00020547,2]
[315868919,1709229042520,-500.0,0.00020547,2]
[315868920,1709229042529,-245.765623,0.00020547,2]
[315868921,1709229042539,-245.765623,0.00020547,2]
[315868922,1709229042548,-245.765623,0.00020547,2]
[315868923,1709229042557,-245.765623,0.00020547,2]
[315868924,1709229042566,-500.0,0.00020547,2]
[315868925,1709229042579,-245.765623,0.00020547,2]
[315868926,1709229042588,-555.30440015,0.00020547,2]
[315868927,1709229042597,-245.765623,0.00020547,2]
[315868928,1709229042607,-245.765623,0.00020547,2]
[315868929,1709229042617,-245.765623,0.00020547,2]
[315868930,1709229042626,-245.765619,0.00020547,2]
[315868931,1709229042635,-500.77670528,0.00020547,2]
[315868932,1709229042644,-500.0,0.00020547,2]
[315868933,1709229042653,-500.0,0.00020547,2]
[315868934,1709229042747,-500.0,0.00020547,2]
[315868935,1709229042757,-500.0,0.00020547,2]
[315868936,1709229042766,-500.0,0.00020547,2]
[315868937,1709229042775,-500.0,0.00020547,2]
[315868938,1709229042784,-500.0,0.00020547,2]
[315868939,1709229042793,-500.0,0.00020547,2]
[315868940,1709229042802,-500.0,0.00020547,2]
[315868941,1709229042811,-500.0,0.00020547,2]
[315868942,1709229042823,-500.0,0.00020547,2]
[315868943,1709229042832,-500.0,0.00020547,2]
[315868945,1709229042841,-500.0,0.00020547,2]
[315868946,1709229042850,-500.0,0.00020547,2]
[315868947,1709229042860,-500.0,0.00020547,2]
[315868948,1709229042870,-500.0,0.00020547,2]
[315868949,1709229042879,-500.0,0.00020547,2]
[315868950,1709229042889,-540.74,0.00020547,2]
[315868951,1709229042898,-500.0,0.00020547,2]
[315868952,1709229042909,-500.0,0.00020547,2]
[315868953,1709229042919,-500.0,0.00020547,2]
[315868954,1709229042928,-500.0,0.00020547,2]
[315868955,1709229042937,-500.0,0.00020547,2]
[315868956,1709229042947,-500.0,0.00020547,2]
[315868957,1709229042957,-500.0,0.00020547,2]
[315868958,1709229042966,-500.0,0.00020547,2]
[315868959,1709229042976,-500.0,0.00020547,2]
[315868960,1709229042985,-500.0,0.00020547,2]
[315868961,1709229042995,-316.31,0.00020547,2]
[315868962,1709229043007,-500.0,0.00020547,2]
[315868963,1709229043016,-508.41519586,0.00020547,2]
[315868964,1709229043025,-500.0,0.00020547,2]
[315868965,1709229043034,-500.26109869,0.00020547,2]
[315868966,1709229043045,-151.0,0.00020547,2]
[315868967,1709229043055,-151.0,0.00020547,2]
[315868968,1709229043064,-501.31742939,0.00020547,2]
[315868969,1709229043079,-500.0,0.00020547,2]
[315868970,1709229043088,-500.0,0.00020547,2]
[315868971,1709229043098,-500.0,0.00020547,2]
[315868972,1709229043107,-501.78405032,0.00020547,2]
[315868973,1709229043116,-500.0,0.00020547,2]
[315868974,1709229043125,-500.0,0.00020547,2]